fUSD/lending_fUSD_20240615
["ID","MTS","AMOUNT","RATE_DAILY","PERIOD"]
[329563171,1718439036065,-500.0,0.00021917,2]
[329563172,1718439036075,-687.44,0.00021917,2]
[329563173,1718439036122,-500.0,0.00021917,2]
[329563174,1718439036148,-500.0,0.00021917,2]
[329563175,1718439036162,-532.15,0.00021917,2]
[329563176,1718439036175,-826.8,0.00021917,2]
[329563177,1718439036187,-849.28,0.00021917,2]
[329563178,1718439036203,-702.84,0.00021917,2]
[329563179,1718439036216,-500.0,0.00021917,2]
[329563180,1718439036232,-820.09,0.00021917,2]
[329563181,1718439036244,-500.0,0.00021917,2]
[329563182,1718439036255,-500.0,0.00021917,2]
[329563183,1718439036266,-798.42,0.00021917,2]
[329563184,1718439036284,-1084.5,0.00021917,2]
[329563185,1718439036294,-500.0,0.00021917,2]
[329563186,1718439036306,-500.0,0.00021917,2]
[329563187,1718439036324,-418.82549425,0.00021917,2]
[329563188,1718439036334,-500.0,0.00021917,2]
[329563189,1718439036346,-500.0,0.00021917,2]
[329563190,1718439036368,-500.0,0.00021917,2]
[329563191,1718439036387,-580.73,0.00021917,2]
[329563192,1718439036413,-500.0,0.00021917,2]
[329563193,1718439036423,-515.26213697,0.00021917,2]
[329563194,1718439036434,-270.84427646,0.00021917,2]
[329563195,1718439036453,-500.0,0.00021917,2]
[329563196,1718439036473,-500.0,0.00021917,2]
[329563197,1718439036497,-500.0,0.00021917,2]
[329563198,1718439036510,-500.0,0.00021917,2]
[329563199,1718439036525,-500.0,0.00021917,2]
[329563200,1718439036553,-500.0,0.00021917,2]
[329563201,1718439036564,-500.0,0.00021917,2]
[329563202,1718439036577,-544.27,0.00021917,2]
[329563203,1718439036588,-599.69,0.00021917,2]
[329563204,1718439036607,-637.92,0.00021917,2]
[329563205,1718439036622,-500.0,0.00021917,2]
[329563206,1718439036633,-500.0,0.00021917,2]
[329563207,1718439036644,-500.0,0.00021917,2]
[329563208,1718439036659,-500.0,0.00021917,2]
[329563209,1718439036683,-500.0,0.00021917,2]
[329563210,1718439036705,-530.89,0.00021917,2]
[329563211,1718439036728,-617.27,0.00021917,2]
[329563212,1718439036749,-500.0,0.00021917,2]
[329563213,1718439036760,-811.6,0.00021917,2]
[329563214,1718439036771,-734.43,0.00021917,2]
[329563216,1718439036794,-500.0,0.00021917,2]
[329563217,1718439036811,-500.0,0.00021917,2]
[329563219,1718439036838,-579.06,0.00021917,2]
[329563221,1718439036875,-500.0,0.00021917,2]
[329563223,1718439036898,-500.0,0.00021917,2]
[329563226,1718439036921,-798.62,0.00021917,2]
[329563228,1718439036956,-500.0,0.00021917,2]
[329563229,1718439036969,-380.24737448,0.00021917,2]
[329563230,1718439036979,-612.8,0.00021917,2]
[329563231,1718439036996,-500.0,0.00021917,2]
[329563233,1718439037007,-500.0,0.00021917,2]
[329563235,1718439037017,-500.0,0.00021917,2]
[329563237,1718439037036,-500.0,0.00021917,2]
[329563238,1718439037056,-500.0,0.00021917,2]
[329563239,1718439037069,-649.61,0.00021917,2]
[329563240,1718439037080,-500.0,0.00021917,2]
[329563241,1718439037096,-500.0,0.00021917,2]
[329563242,1718439037124,-500.0,0.00021917,2]
[329563243,1718439037173,-683.86,0.00021917,2]
[329563244,1718439037186,-500.0,0.00021917,2]
[329563245,1718439037197,-500.0,0.00021917,2]
[329563246,1718439037211,-500.0,0.00021917,2]
[329563247,1718439037244,-500.0,0.00021917,2]
[329563248,1718439037261,-500.0,0.00021917,2]
[329563249,1718439037285,-500.0,0.00021917,2]
[329563250,1718439037298,-500.0,0.00021917,2]
[329563251,1718439037312,-500.0,0.00021917,2]
[329563252,1718439037323,-500.0,0.00021917,2]
[329563253,1718439037336,-582.86,0.00021917,2]
[329563254,1718439037347,-500.0,0.00021917,2]
[329563255,1718439037363,-500.0,0.00021917,2]
[329563256,1718439037389,-500.0,0.00021917,2]
[329563257,1718439037448,-500.0,0.00021917,2]
[329563258,1718439037476,-813.63,0.00021917,2]
[329563259,1718439037496,-500.0,0.00021917,2]
[329563260,1718439037608,-500.0,0.00021917,2]
[329563261,1718439037664,-500.0,0.00021917,2]
[329563262,1718439037677,-210.37442994,0.00021917,2]
[329563263,1718439037688,-500.0,0.00021917,2]
[329563264,1718439037711,-500.0,0.00021917,2]
[329563265,1718439037723,-500.0,0.00021917,2]
[329563266,1718439037745,-500.0,0.00021917,2]
[329563267,1718439037756,-623.43,0.00021917,2]
[329563268,1718439037800,-500.0,0.00021917,2]
[329563269,1718439037840,-500.0,0.00021917,2]
[329563270,1718439037860,-500.0,0.00021917,2]
[329563271,1718439037953,-500.0,0.00021917,2]
[329563272,1718439037988,-720.05,0.00021917,2]
[329563273,1718439038013,-621.24,0.00021917,2]
[329563274,1718439038065,-500.0,0.00021917,2]
[329563275,1718439038116,-500.0,0.00021917,2]
[329563276,1718439038128,-500.0,0.00021917,2]
[329563277,1718439038140,-500.0,0.00021917,2]
[329563278,1718439038172,-609.35,0.00021917,2]
[329563279,1718439038252,-500.0,0.00021917,2]
[329563280,1718439038264,-616.94007966,0.00021917,2]
[329563281,1718439038286,-500.0,0.00021917,2]
[329563282,1718439038298,-500.0,0.00021917,2]
[329563283,1718439038342,-500.0,0.00021917,2]
[329563284,1718439038360,-500.0,0.00021917,2]
[329563285,1718439038407,-500.0,0.00021917,2]
[329563286,1718439038433,-500.0,0.00021917,2]
[329563287,1718439038451,-500.0,0.00021917,2]
[329563288,1718439038469,-212.49492913,0.00021917,2]
[329563289,1718439038492,-353.12268056,0.00021917,2]
[329563290,1718439038520,-500.0,0.00021917,2]
[329563291,1718439038533,-500.0,0.00021917,2]
[329563292,1718439038546,-500.0,0.00021917,2]
[329563293,1718439038570,-500.0,0.00021917,2]
[329563294,1718439038602,-500.0,0.00021917,2]
[329563295,1718439038625,-500.0,0.00021917,2]
[329563296,1718439038645,-500.0,0.00021917,2]
[329563297,1718439038676,-500.0,0.00021917,2]
[329563298,1718439038785,-500.0,0.00021917,2]
[329563299,1718439038798,-550.15,0.00021917,2]
[329563300,1718439038841,-500.0,0.00021917,2]
[329563301,1718439038889,-500.0,0.00021917,2]
[329563302,1718439038940,-500.0,0.00021917,2]
[329563303,1718439038952,-500.0,0.00021917,2]
[329563304,1718439038985,-614.12,0.00021917,2]
[329563305,1718439039030,-500.0,0.00021917,2]
[329563306,1718439039108,-500.0,0.00021917,2]
[329563307,1718439039121,-500.0,0.00021917,2]
[329563308,1718439039144,-500.0,0.00021917,2]
[329563309,1718439039184,-500.0,0.00021917,2]
[329563310,1718439039217,-500.0,0.00021917,2]
[329563311,1718439039260,-500.0,0.00021917,2]
[329563312,1718439039278,-564.38,0.00021917,2]
[329563313,1718439039297,-500.0,0.00021917,2]
[329563314,1718439039324,-611.53,0.00021917,2]
[329563315,1718439039340,-638.10926348,0.00021917,2]
[329563316,1718439039374,-500.0,0.00021917,2]
[329563317,1718439039398,-500.0,0.00021917,2]
[329563318,1718439039432,-500.0,0.00021917,2]
[329563319,1718439039451,-500.0,0.00021917,2]
[329563320,1718439039491,-500.0,0.00021917,2]
[329563321,1718439039553,-500.0,0.00021917,2]
[329563322,1718439039577,-500.0,0.00021917,2]
[329563323,1718439039630,-500.0,0.00021917,2]
[329563324,1718439039641,-500.0,0.00021917,2]
[329563325,1718439039681,-500.0,0.00021917,2]
[329563326,1718439039695,-643.38,0.00021917,2]
[329563327,1718439039745,-500.0,0.00021917,2]
[329563328,1718439039757,-500.0,0.00021917,2]
[329563329,1718439039817,-500.0,0.00021917,2]
[329563330,1718439039888,-500.0,0.00021917,2]
[329563331,1718439039967,-500.0,0.00021917,2]
[329563332,1718439040004,-500.0,0.00021917,2]
[329563333,1718439040025,-500.0,0.00021917,2]
[329563334,1718439040062,-500.0,0.00021917,2]
[329563335,1718439040123,-500.0,0.00021917,2]
[329563336,1718439040158,-500.0,0.00021917,2]
[329563337,1718439040208,-589.65,0.00021917,2]
[329563338,1718439040226,-500.0,0.00021917,2]
[329563339,1718439040274,-500.0,0.00021917,2]
[329563340,1718439040327,-500.0,0.00021917,2]
[329563341,1718439040383,-500.0,0.00021917,2]
[329563342,1718439040394,-500.0,0.00021917,2]
[329563343,1718439040434,-503.17,0.00021917,2]
[329563344,1718439040458,-518.71,0.00021917,2]
[329563345,1718439040478,-500.0,0.00021917,2]
[329563346,1718439040493,-500.0,0.00021917,2]
[329563347,1718439040504,-500.0,0.00021917,2]
[329563348,1718439040515,-500.0,0.00021917,2]
[329563349,1718439040531,-500.0,0.00021917,2]
[329563350,1718439040566,-507.96,0.00021917,2]
[329563351,1718439040586,-500.0,0.00021917,2]
[329563352,1718439040621,-500.0,0.00021917,2]
[329563353,1718439040636,-500.0,0.00021917,2]
[329563354,1718439040652,-1786.68244996,0.00021917,2]
[329563355,1718439040672,-564.35,0.00021917,2]
[329563356,1718439040694,-500.0,0.00021917,2]
[329563357,1718439040785,-200.0,0.00021917,2]
[329563358,1718439040809,-1263.87,0.00021917,2]
[329563359,1718439040837,-500.0,0.00021917,2]
[329563360,1718439040857,-255.27,0.00021917,2]
[329563361,1718439040870,-500.0,0.00021917,2]
[329563362,1718439040884,-500.0,0.00021917,2]
[329563363,1718439040903,-500.0,0.00021917,2]
[329563364,1718439040949,-1710.44,0.00021917,2]
[329563365,1718439040987,-500.0,0.00021917,2]
[329563366,1718439041016,-500.0,0.00021917,2]
[329563367,1718439041028,-500.0,0.00021917,2]
[329563368,1718439041045,-500.0,0.00021917,2]
[329563369,1718439041090,-500.0,0.00021917,2]
[329563370,1718439041102,-500.0,0.00021917,2]
[329563371,1718439041114,-749.95,0.00021917,2]
[329563372,1718439041127,-500.0,0.00021917,2]
[329563373,1718439041164,-500.0,0.00021917,2]
[329563374,1718439041177,-500.0,0.00021917,2]
[329563375,1718439041201,-500.0,0.00021917,2]
[329563376,1718439041264,-510.4438422,0.00021917,2]
[329563377,1718439041290,-500.0,0.00021917,2]
[329563378,1718439041304,-529.62,0.00021917,2]
[329563379,1718439041335,-500.0,0.00021917,2]
[329563380,1718439041360,-500.0,0.00021917,2]
[329563381,1718439041372,-500.0,0.00021917,2]
[329563382,1718439041390,-500.0,0.00021917,2]
[329563383,1718439041427,-500.0,0.00021917,2]
[329563384,1718439041456,-500.0,0.00021917,2]
[329563385,1718439041470,-500.0,0.00021917,2]
[329563386,1718439041481,-500.0,0.00021917,2]
[329563387,1718439041502,-500.0,0.00021917,2]
[329563388,1718439041520,-500.0,0.00021917,2]
[329563389,1718439041532,-500.0,0.00021917,2]
[329563390,1718439041550,-500.0,0.00021917,2]
[329563391,1718439041563,-500.0,0.00021917,2]
[329563392,1718439041583,-500.0,0.00021917,2]
[329563393,1718439041612,-500.0,0.00021917,2]
[329563394,1718439041672,-561.53,0.00021917,2]
[329563395,1718439041714,-654.74,0.00021917,2]
[329563396,1718439041738,-500.0,0.00021917,2]
[329563397,1718439041759,-500.0,0.00021917,2]
[329563398,1718439041773,-500.0,0.00021917,2]
[329563399,1718439041812,-563.55,0.00021917,2]
[329563400,1718439041823,-500.0,0.00021917,2]
[329563401,1718439041856,-500.0,0.00021917,2]
[329563402,1718439041884,-500.0,0.00021917,2]
[329563403,1718439041899,-500.0,0.00021917,2]
[329563404,1718439041925,-500.0,0.00021917,2]
[329563405,1718439041974,-500.0,0.00021917,2]
[329563406,1718439042002,-500.0,0.00021917,2]
[329563407,1718439042052,-500.0,0.00021917,2]
[329563408,1718439042080,-571.34,0.00021917,2]
[329563409,1718439042097,-504.38,0.00021917,2]
[329563410,1718439042133,-500.0,0.00021917,2]
[329563411,1718439042165,-595.14702853,0.00021917,2]
[329563412,1718439042179,-500.0,0.00021917,2]
[329563413,1718439042216,-500.0,0.00021917,2]
[329563414,1718439042236,-360.71439152,0.00021917,2]
[329563415,1718439042256,-500.0,0.00021917,2]
[329563416,1718439042267,-500.0,0.00021917,2]
[329563417,1718439042284,-500.0,0.00021917,2]
[329563418,1718439042297,-808.1,0.00021917,2]
[329563419,1718439042310,-500.0,0.00021917,2]
[329563420,1718439042340,-530.08,0.00021917,2]
[329563421,1718439042354,-500.0,0.00021917,2]
[329563422,1718439042365,-500.0,0.00021917,2]
[329563423,1718439042377,-500.0,0.00021917,2]
[329563424,1718439042391,-500.0,0.00021917,2]
[329563425,1718439042429,-949.2,0.00021917,2]
[329563426,1718439042460,-500.0,0.00021917,2]
[329563427,1718439042472,-500.0,0.00021917,2]
[329563428,1718439042484,-1066.90995,0.00021917,2]
[329563429,1718439042496,-500.0,0.00021917,2]
[329563430,1718439042512,-500.0,0.00021917,2]
[329563431,1718439042524,-500.0,0.00021917,2]
[329563432,1718439042534,-500.0,0.00021917,2]
[329563433,1718439042556,-581.32,0.00021917,2]
[329563434,1718439042584,-615.74510999,0.00021917,2]
[329563435,1718439042597,-500.0,0.00021917,2]
[329563436,1718439042617,-500.0,0.00021917,2]
[329563437,1718439042818,-500.0,0.00021917,2]
[329563438,1718439042887,-500.0,0.00021917,2]
[329563439,1718439042901,-500.0,0.00021917,2]
[329563440,1718439042912,-500.0,0.00021917,2]
[329563441,1718439042940,-500.0,0.00021917,2]
[329563442,1718439042969,-500.0,0.00021917,2]
[329563443,1718439042983,-500.0,0.00021917,2]
[329563444,1718439042999,-500.0,0.00021917,2]
[329563445,1718439043019,-638.85,0.00021917,2]
[329563446,1718439043047,-500.0,0.00021917,2]
[329563447,1718439043072,-619.95,0.00021917,2]
[329563448,1718439043083,-500.0,0.00021917,2]
[329563449,1718439043124,-500.0,0.00021917,2]
[329563450,1718439043166,-500.0,0.00021917,2]
[329563451,1718439043199,-500.0,0.00021917,2]
[329563452,1718439043228,-500.0,0.00021917,2]
[329563453,1718439043247,-552.28383241,0.00021917,2]
[329563454,1718439043298,-701.29,0.00021917,2]
[329563455,1718439043323,-500.0,0.00021917,2]
[329563456,1718439043335,-500.0,0.00021917,2]
[329563457,1718439043370,-500.0,0.00021917,2]
[329563458,1718439043420,-500.0,0.00021917,2]
[329563459,1718439043464,-2314.7,0.00021917,2]
[329563460,1718439043475,-500.0,0.00021917,2]
[329563461,1718439043487,-500.0,0.00021917,2]
[329563462,1718439043500,-1217.89,0.00021917,2]
[329563463,1718439043526,-500.0,0.00021917,2]
[329563464,1718439043538,-500.0,0.00021917,2]
[329563465,1718439043562,-500.0,0.00021917,2]
[329563466,1718439043584,-500.0,0.00021917,2]
[329563467,1718439043596,-500.0,0.00021917,2]
[329563468,1718439043607,-500.0,0.00021917,2]
[329563469,1718439043619,-500.0,0.00021917,2]
[329563470,1718439043630,-825.1,0.00021917,2]
[329563471,1718439043644,-520.28,0.00021917,2]
[329563472,1718439043655,-500.0,0.00021917,2]
[329563473,1718439043667,-2093.01,0.00021917,2]
[329563474,1718439043684,-500.0,0.00021917,2]
[329563475,1718439043706,-500.0,0.00021917,2]
[329563476,1718439043730,-503.75632548,0.00021917,2]
[329563477,1718439043759,-500.0,0.00021917,2]
[329563478,1718439043772,-500.0,0.00021917,2]
[329563479,1718439043796,-500.0,0.00021917,2]
[329563480,1718439043814,-500.0,0.00021917,2]
[329563481,1718439043825,-546.13,0.00021917,2]
[329563482,1718439043864,-500.0,0.00021917,2]
[329563483,1718439043903,-500.0,0.00021917,2]
[329563484,1718439043925,-500.0,0.00021917,2]
[329563485,1718439043941,-1102.31,0.00021917,2]
[329563486,1718439043958,-500.0,0.00021917,2]
[329563487,1718439044001,-569.09,0.00021917,2]
[329563488,1718439044020,-537.86,0.00021917,2]
[329563489,1718439044048,-500.0,0.00021917,2]
[329563490,1718439044058,-500.0,0.00021917,2]
[329563491,1718439044092,-500.0,0.00021917,2]
[329563492,1718439044123,-500.0,0.00021917,2]
[329563493,1718439044179,-500.0,0.00021917,2]
[329563494,1718439044204,-500.0,0.00021917,2]
[329563495,1718439044221,-500.0,0.00021917,2]
[329563496,1718439044256,-500.0,0.00021917,2]
[329563497,1718439044268,-500.0,0.00021917,2]
[329563498,1718439044290,-500.0,0.00021917,2]
[329563499,1718439044308,-500.0,0.00021917,2]
[329563502,1718439044340,-500.0,0.00021917,2]
[329563505,1718439044352,-1223.84,0.00021917,2]
[329563506,1718439044368,-500.0,0.00021917,2]
[329563508,1718439044379,-704.51,0.00021917,2]
[329563510,1718439044398,-1209.48,0.00021917,2]
[329563512,1718439044411,-500.0,0.00021917,2]
[329563513,1718439044437,-500.0,0.00021917,2]
[329563514,1718439044461,-473.83701207,0.00021917,2]
[329563515,1718439044764,-26.16298793,0.00021917,2]
[329563516,1718439044776,-500.0,0.00021917,2]
[329563517,1718439044795,-255.7872113,0.00021917,2]
[329563518,1718439044890,-244.2127887,0.00021917,2]
[329563519,1718439044942,-500.0,0.00021917,2]
[329563520,1718439044953,-500.0,0.00021917,2]
[329563521,1718439044969,-500.0,0.00021917,2]
[329563522,1718439044980,-386.23706418,0.00021917,2]
[329563523,1718439044998,-827.13712285,0.00021917,2]
[329563524,1718439045018,-418.90217464,0.00021917,2]
[329563525,1718439045069,-299.99,0.00021917,2]
[329563526,1718439045102,-355.34,0.00021917,2]
[329563527,1718439045160,-438.26363833,0.00021917,2]
[329563528,1718439045220,-500.0,0.00021917,2]
[329563529,1718439045248,-500.0,0.00021917,2]
[329563530,1718439045272,-606.84,0.00021917,2]
[329563531,1718439045284,-500.0,0.00021917,2]
[329563532,1718439045296,-500.0,0.00021917,2]
[329563533,1718439045313,-33.27373016,0.00021917,2]
[329563534,1718439045368,-615.99626984,0.00021917,2]
[329563535,1718439045380,-500.0,0.00021917,2]
[329563536,1718439045404,-500.0,0.00021917,2]
[329563537,1718439045428,-500.0,0.00021917,2]
[329563538,1718439045445,-500.0,0.00021917,2]
[329563539,1718439045461,-500.0,0.00021917,2]
[329563540,1718439045508,-500.0,0.00021917,2]
[329563541,1718439045521,-500.0,0.00021917,2]
[329563542,1718439045548,-385.79,0.00021917,2]
[329563543,1718439045560,-861.55,0.00021917,2]
[329563544,1718439045570,-581.25,0.00021917,2]
[329563545,1718439045580,-500.0,0.00021917,2]
[329563546,1718439045598,-500.0,0.00021917,2]
[329563547,1718439045616,-500.0,0.00021917,2]
[329563548,1718439045628,-500.0,0.00021917,2]
[329563549,1718439045653,-500.0,0.00021917,2]
[329563550,1718439045692,-859.59,0.00021917,2]
[329563551,1718439045710,-500.0,0.00021917,2]
[329563552,1718439045724,-500.0,0.00021917,2]
[329563553,1718439045768,-298.20697154,0.00021917,2]
[329563555,1718439046342,-201.79302846,0.00021917,2]
[329563556,1718439046376,-500.0,0.00021917,2]
[329563557,1718439046388,-500.0,0.00021917,2]
[329563558,1718439046406,-500.0,0.00021917,2]
[329563559,1718439046416,-848.59,0.00021917,2]
[329563560,1718439046431,-919.69,0.00021917,2]
[329563561,1718439046444,-500.0,0.00021917,2]
[329563562,1718439046461,-473.44571,0.00021917,2]
[329563563,1718439046475,-26.55429,0.00021917,2]
[329563564,1718439046504,-500.0,0.00021917,2]
[329563565,1718439046532,-500.0,0.00021917,2]
[329563566,1718439046547,-483.8,0.00021917,2]
[329563567,1718439046565,-212.53000448,0.00021917,2]
[329563568,1718439046589,-287.46999552,0.00021917,2]
[329563569,1718439046608,-256.62989028,0.00021917,2]
[329563570,1718439046704,-243.37010972,0.00021917,2]
[329563571,1718439046784,-500.0,0.00021917,2]
[329563572,1718439046808,-128.18263418,0.00021917,2]
[329563573,1718439046848,-1382.79356823,0.00021917,2]
[329563574,1718439046873,-397.43379759,0.00021917,2]
[329563575,1718439046889,-500.0,0.00021917,2]
[329563576,1718439046901,-565.04,0.00021917,2]
[329563577,1718439046928,-500.0,0.00021917,2]
[329563578,1718439046956,-537.41,0.00021917,2]
[329563579,1718439046979,-500.0,0.00021917,2]
[329563580,1718439046998,-500.0,0.00021917,2]
[329563581,1718439047092,-500.0,0.00021917,2]
[329563582,1718439047112,-250.0,0.00021918,2]
[329563583,1718439047124,-161.22,0.00021918,2]
[329563584,1718439047160,-500.0,0.0002209,3]
[329563585,1718439047177,-510.58117956,0.0002209,2]
[329563586,1718439047188,-2000.0,0.00022136,2]
[329563587,1718439047213,-200.0,0.00022136,2]
[329563589,1718439047283,-2000.0,0.00022136,2]
[329563592,1718439047309,-200.0,0.00022136,2]
[329563593,1718439047332,-200.0,0.00022136,2]
[329563594,1718439047344,-475.21,0.00022165,2]
[329563595,1718439047370,-224.63147008,0.00022181,2]
[329563596,1718439047412,-500.0,0.0002219,3]
[329563597,1718439047436,-500.0,0.0002219,3]
[329563598,1718439047449,-500.0,0.00022191,3]
[329563599,1718439047486,-500.0,0.00022191,3]
[329563600,1718439047499,-500.0,0.00022191,3]
[329563601,1718439047512,-500.0,0.00022191,3]
[329563602,1718439047565,-500.0,0.00022191,3]
[329563603,1718439047585,-435.00017305,0.00022191,3]
[329563604,1718439047598,-264.80646567,0.00022191,3]
[329563605,1718439047612,-500.0,0.00022191,3]
[329563606,1718439047624,-500.0,0.00022191,3]
[329563607,1718439047636,-610.07905164,0.00022191,3]
[329563608,1718439047646,-500.0,0.00022191,3]
[329563609,1718439047658,-500.0,0.00022191,3]
[329563610,1718439047696,-500.0,0.00022191,3]
[329563611,1718439047709,-500.0,0.00022191,3]
[329563612,1718439047732,-500.0,0.00022191,3]
[329563613,1718439047748,-500.0,0.00022191,3]
[329563614,1718439047776,-500.0,0.00022191,3]
[329563615,1718439047796,-527.99138639,0.00022191,3]
[329563616,1718439047824,-500.0,0.00022191,3]
[329563617,1718439047857,-570.84,0.00022191,3]
[329563618,1718439047871,-500.0,0.00022191,3]
[329563619,1718439047883,-500.0,0.00022191,3]
[329563620,1718439047896,-500.0,0.00022191,3]
[329563621,1718439047915,-500.0,0.00022191,3]
[329563622,1718439047944,-500.0,0.00022191,3]
[329563623,1718439047982,-500.0,0.00022191,3]
[329563624,1718439048016,-500.0,0.00022191,3]
[329563625,1718439048060,-500.0,0.00022191,3]
[329563626,1718439048080,-500.0,0.00022191,3]
[329563627,1718439048110,-500.0,0.00022191,3]
[329563628,1718439048158,-500.0,0.00022191,3]
[329563629,1718439048209,-500.0,0.00022191,3]
[329563630,1718439048221,-746.45,0.00022191,3]
[329563631,1718439048239,-500.0,0.00022191,3]
[329563632,1718439048301,-500.0,0.00022191,3]
[329563633,1718439048323,-802.52,0.00022191,3]
[329563634,1718439048336,-500.0,0.00022191,3]
[329563635,1718439048381,-500.0,0.00022191,3]
[329563636,1718439048424,-772.42,0.00022191,3]
[329563637,1718439048455,-500.0,0.00022191,3]
[329563638,1718439048489,-500.0,0.00022191,3]
[329563639,1718439048525,-687.44,0.00022191,3]
[329563640,1718439048596,-500.0,0.00022191,3]
[329563641,1718439048608,-500.0,0.00022191,3]
[329563642,1718439048623,-532.15,0.00022191,3]
[329563643,1718439048637,-849.28,0.00022191,3]
[329563644,1718439048653,-702.84,0.00022191,3]
[329563645,1718439048704,-500.0,0.00022191,3]
[329563646,1718439048765,-820.09,0.00022191,3]
[329563647,1718439048807,-500.0,0.00022191,3]
[329563648,1718439048848,-500.0,0.00022191,3]
[329563649,1718439048870,-798.42,0.00022191,3]
[329563650,1718439048905,-1084.5,0.00022191,3]
[329563651,1718439048919,-500.0,0.00022191,3]
[329563652,1718439048930,-500.0,0.00022191,3]
[329563653,1718439048944,-500.0,0.00022191,3]
[329563654,1718439048957,-500.0,0.00022191,3]
[329563655,1718439048971,-500.0,0.00022191,3]
[329563656,1718439049000,-580.73,0.00022191,3]
[329563657,1718439049020,-500.0,0.00022191,3]
[329563658,1718439049032,-500.0,0.00022191,3]
[329563659,1718439049077,-500.0,0.00022191,3]
[329563660,1718439049156,-500.0,0.00022191,3]
[329563661,1718439049176,-500.0,0.00022191,3]
[329563662,1718439049188,-500.0,0.00022191,3]
[329563663,1718439049202,-500.0,0.00022191,3]
[329563664,1718439049259,-500.0,0.00022191,3]
[329563665,1718439049271,-544.27,0.00022191,3]
[329563666,1718439049299,-599.69,0.00022191,3]
[329563667,1718439049310,-637.92,0.00022191,3]
[329563668,1718439049322,-500.0,0.00022191,3]
[329563669,1718439049353,-500.0,0.00022191,3]
[329563670,1718439049413,-500.0,0.00022191,3]
[329563671,1718439049439,-500.0,0.00022191,3]
[329563672,1718439049450,-299.40954314,0.00022191,3]
[329563673,1718439049461,-530.89,0.00022191,3]
[329563674,1718439049473,-617.27,0.00022191,3]
[329563675,1718439049490,-500.0,0.00022191,3]
[329563676,1718439049500,-811.6,0.00022191,3]
[329563677,1718439049521,-734.43,0.00022191,3]
[329563678,1718439049531,-500.0,0.00022191,3]
[329563679,1718439049545,-500.0,0.00022191,3]
[329563680,1718439049564,-579.06,0.00022191,3]
[329563681,1718439049604,-500.0,0.00022191,3]
[329563682,1718439049628,-500.0,0.00022191,3]
[329563683,1718439049645,-798.62,0.00022191,3]
[329563684,1718439049657,-500.0,0.00022191,3]
[329563685,1718439049696,-612.8,0.00022191,3]
[329563686,1718439049715,-500.0,0.00022191,3]
[329563687,1718439049759,-500.0,0.00022191,3]
[329563688,1718439049773,-500.0,0.00022191,3]
[329563689,1718439049788,-500.0,0.00022191,3]
[329563690,1718439049807,-500.0,0.00022191,3]
[329563691,1718439049833,-649.61,0.00022191,3]